[Event "Portuguese Associations Cup 2019"]
[Site "Almada"]
[Date "2019.09.28"]
[Round "1.1"]
[White "Rodrigues, Pedro Filipe"]
[Black "Rocha, Sergio"]
[Result "1/2-1/2"]
[ECO "B23"]
[WhiteElo "2027"]
[BlackElo "2356"]
[Annotator "NA"]
[PlyCount "95"]
[EventDate "2019.09.28"]
[EventType "swiss"]
[EventCountry "POR"]
[SourceTitle "playchess.com"]
[Source "ChessBase"]
[SourceQuality "1"]
[TimeControl "5400+30"]

1. e4 {[%emt 0:00:00]} c5 {[%emt 0:00:00]} 2. Nc3 {[%emt 0:00:00]} Nc6 {[%emt 0:00:00]} 3. f4 {[%emt 0:01:27]} e6 {[%emt 0:00:00]} 4. Bb5 {[%emt 0:00:57]} Nd4 {[%emt 0:00:04]} 5. Nf3 {[%emt 0:00:42]} Nf6 {[%emt 0:00:12]} 6. Bd3 {[%emt 0:10:44]} d5 7. e5 {[%emt 0:01:38]} Nxf3+ {[%emt 0:00:58]} 8. Qxf3 {[%emt 0:01:05]} Nd7 {[%emt 0:00:05]} 9. b3 {[%emt 0:01:31]} a6 {[%emt 0:00:14]} 10. a4 {[%emt 0:01:02]} g6 {[%emt 0:01:39]} 11. O-O {[%emt 0:06:07]} Bg7 {[%emt 0:00:10]} 12. Kh1 {[%emt 0:00:56]} O-O {[%emt 0:00:41]} 13. Re1 {[%emt 0:02:59]} b6 {[%emt 0:00:17]} 14. Bb2 {[%emt 0:02:24]} Bb7 {[%emt 0:00:20]} 15. Nd1 {[%emt 0:05:24]} Qc7 {[%emt 0:02:10]} 16. Nf2 {[%emt 0:02:15]} Rae8 {[%emt 0:04:10]} 17. Ng4 {[%emt 0:06:04]} f5 {[%emt 0:00:00]} 18. exf6 {[%emt 0:08:15]} Nxf6 19. Be5 {[%emt 0:02:57]} Qd7 {[%emt 0:00:38]} 20. Nxf6+ {[%emt 0:00:51]} Bxf6 {[%emt 0:00:06]} 21. Qg4 {[%emt 0:03:11]} Qf7 22. Rf1 {[%emt 0:01:47]} Bc8 {[%emt 0:05:25]} 23. Rae1 {[%emt 0:02:38]} Qg7 {[%emt 0:00:13]} 24. Qe2 {[%emt 0:03:41]} a5 {[%emt 0:02:01]} 25. Kg1 {[%emt 0:06:15]} Rf7 26. Qg4 {[%emt 0:04:37]} Ref8 {[%emt 0:00:47]} 27. g3 {[%emt 0:01:16]} Bd7 {[%emt 0:01:37]} 28. c4 d4 {[%emt 0:01:23]} 29. Bxf6 {[%emt 0:02:47]} Rxf6 {[%emt 0:00:08]} 30. Re5 R8f7 31. Rfe1 {[%emt 0:03:17]} Qf8 {[%emt 0:01:24]} 32. h4 {[%emt 0:02:48]} Rg7 33. Kg2 Qf7 {[%emt 0:04:32]} 34. R1e2 {[%emt 0:05:40]} Kh8 {[%emt 0:00:09]} 35. Qg5 {[%emt 0:00:33]} Rg8 36. Be4 {[%emt 0:05:37]} Rf5 {[%emt 0:01:22]} 37. Qg4 {[%emt 0:01:05]} Rxe5 {[%emt 0:00:22]} 38. fxe5 {[%emt 0:00:01]} Rf8 {[%emt 0:00:19]} 39. Bf3 {[%emt 0:00:54]} Kg7 {[%emt 0:02:11]} 40. Qe4 {[%emt 0:00:13]} Qf5 41. Rf2 Rf7 {[%emt 0:02:13]} 42. d3 {[%emt 0:04:23]} Bc8 {[%emt 0:01:53]} 43. g4 {[%emt 0:00:26]} Qf4 {[%emt 0:01:18]} 44. Qxf4 {[%emt 0:00:10]} Rxf4 {[%emt 0:00:05]} 45. Kg3 {[%emt 0:00:05]} Rf7 {[%emt 0:00:46]} 46. Be4 {[%emt 0:00:10]} Bd7 {[%emt 0:02:59]} 47. Rxf7+ {[%emt 0:00:08]} Kxf7 {[%emt 0:00:04]} 48. g5 {[%emt 0:00:06]} 1/2-1/2

[Event "Portuguese Associations Cup 2019"]
[Site "Almada"]
[Date "2019.09.28"]
[Round "1.2"]
[White "Carvalho, Emanuel Jose"]
[Black "Constantino, Paulo Jorge R"]
[Result "1-0"]
[ECO "B29"]
[WhiteElo "2025"]
[BlackElo "1533"]
[Annotator "NA"]
[PlyCount "65"]
[EventDate "2019.09.28"]
[EventType "swiss"]
[EventCountry "POR"]
[SourceTitle "playchess.com"]
[Source "ChessBase"]
[SourceQuality "1"]
[TimeControl "5400+30"]

1. e4 c5 {[%emt 0:00:11]} 2. Nf3 {[%emt 0:27:02]} Nf6 {[%emt 0:00:35]} 3. Nc3 {[%emt 0:01:22]} Nc6 4. d4 cxd4 {[%emt 0:04:58]} 5. Nxd4 {[%emt 0:02:33]} a6 6. Be3 {[%emt 0:08:58]} d6 {[%emt 0:09:55]} 7. Be2 Nxd4 {[%emt 0:10:42]} 8. Qxd4 {[%emt 0:04:41]} e5 {[%emt 0:06:26]} 9. Qd2 {[%emt 0:09:32]} Ng4 10. Bg5 {[%emt 0:02:09]} f6 {[%emt 0:02:24]} 11. Bh4 {[%emt 0:01:38]} Be6 {[%emt 0:09:38]} 12. Nd5 Rc8 13. Rd1 {[%emt 0:07:57]} g5 {[%emt 0:01:44]} 14. Bg3 {[%emt 0:00:31]} f5 15. h3 {[%emt 0:05:20]} f4 {[%emt 0:19:46]} 16. Bxg4 Bxd5 {[%emt 0:02:15]} 17. Bxc8 {[%emt 0:06:52]} Bxe4 {[%emt 0:00:38]} 18. Be6 {[%emt 0:02:34]} Bxg2 19. Rg1 {[%emt 0:00:32]} Bf3 {[%emt 0:00:46]} 20. Rc1 {[%emt 0:01:00]} Qe7 {[%emt 0:07:02]} 21. Bd5 Bxd5 {[%emt 0:14:36]} 22. Qxd5 {[%emt 0:00:32]} fxg3 {[%emt 0:00:24]} 23. Rxg3 {[%emt 0:00:01]} h5 24. Rd1 {[%emt 0:00:08]} Qf6 {[%emt 0:03:09]} 25. Rf3 {[%emt 0:00:09]} Qe7 26. Rb3 {[%emt 0:00:19]} Rh7 {[%emt 0:00:59]} 27. Rdd3 {[%emt 0:00:18]} g4 28. Re3 {[%emt 0:00:42]} Rg7 {[%emt 0:02:16]} 29. Rbc3 {[%emt 0:00:27]} Qd7 {[%emt 0:01:28]} 30. hxg4 Rxg4 31. Rg3 {[%emt 0:01:30]} Rd4 {[%emt 0:01:07]} 32. Qf3 {[%emt 0:00:12]} Qh7 33. Rc8+ 1-0

[Event "Portuguese Associations Cup 2019"]
[Site "Almada"]
[Date "2019.09.28"]
[Round "1.3"]
[White "Custodio, Marco Miguel Rogerio"]
[Black "Reis, Luis Simoes"]
[Result "1/2-1/2"]
[ECO "D85"]
[WhiteElo "1775"]
[BlackElo "1867"]
[Annotator "NA"]
[PlyCount "113"]
[EventDate "2019.09.28"]
[EventType "swiss"]
[EventCountry "POR"]
[SourceTitle "playchess.com"]
[Source "ChessBase"]
[SourceQuality "1"]
[TimeControl "5400+30"]

1. Nf3 {[%emt 0:00:00]} Nf6 {[%emt 0:00:12]} 2. d4 {[%emt 0:00:00]} g6 {[%emt 0:00:30]} 3. c4 {[%emt 0:01:15]} Bg7 {[%emt 0:00:20]} 4. Nc3 {[%emt 0:00:57]} d5 {[%emt 0:01:01]} 5. cxd5 {[%emt 0:02:16]} Nxd5 {[%emt 0:00:11]} 6. e4 {[%emt 0:00:36]} Nxc3 {[%emt 0:00:10]} 7. bxc3 {[%emt 0:00:13]} O-O {[%emt 0:02:20]} 8. Bc4 {[%emt 0:01:36]} c5 {[%emt 0:01:21]} 9. O-O {[%emt 0:03:51]} Nc6 {[%emt 0:01:02]} 10. Be3 {[%emt 0:04:00]} Bg4 {[%emt 0:05:43]} 11. e5 {[%emt 0:11:42]} cxd4 {[%emt 0:03:27]} 12. cxd4 {[%emt 0:00:55]} Rc8 {[%emt 0:07:36]} 13. Be2 {[%emt 0:05:20]} Qa5 {[%emt 0:07:56]} 14. Qb3 Qb4 {[%emt 0:09:31]} 15. Qxb4 {[%emt 0:10:48]} Nxb4 {[%emt 0:00:10]} 16. Rab1 {[%emt 0:00:31]} Nxa2 {[%emt 0:01:22]} 17. Rxb7 {[%emt 0:00:18]} Nc3 {[%emt 0:01:37]} 18. Ba6 {[%emt 0:00:27]} e6 {[%emt 0:24:13]} 19. Rxa7 {[%emt 0:03:35]} Ra8 {[%emt 0:00:17]} 20. Rxa8 {[%emt 0:00:41]} Rxa8 {[%emt 0:00:08]} 21. Bd3 {[%emt 0:03:08]} Rd8 {[%emt 0:04:35]} 22. Bg5 {[%emt 0:06:46]} Rd7 {[%emt 0:05:23]} 23. Rc1 {[%emt 0:01:46]} h6 {[%emt 0:00:31]} 24. Be3 {[%emt 0:09:06]} Na2 {[%emt 0:02:03]} 25. Rc8+ {[%emt 0:02:37]} Kh7 {[%emt 0:00:09]} 26. Bb1 Nb4 {[%emt 0:04:26]} 27. Rc4 {[%emt 0:02:07]} Nd5 {[%emt 0:00:52]} 28. Ne1 {[%emt 0:02:52]} Be2 {[%emt 0:05:38]} 29. Bd3 {[%emt 0:00:13]} Bxd3 {[%emt 0:00:32]} 30. Nxd3 {[%emt 0:00:07]} Ra7 {[%emt 0:02:32]} 31. Nc5 {[%emt 0:01:46]} Ra3 {[%emt 0:01:03]} 32. Bc1 {[%emt 0:01:53]} Ra1 33. Kf1 {[%emt 0:01:49]} Nb4 {[%emt 0:04:55]} 34. Rxb4 {[%emt 0:01:35]} Rxc1+ {[%emt 0:00:08]} 35. Ke2 {[%emt 0:00:05]} Rc2+ {[%emt 0:00:14]} 36. Ke3 {[%emt 0:00:13]} Bxe5 37. Kd3 {[%emt 0:01:11]} Rxf2 {[%emt 0:01:08]} 38. dxe5 {[%emt 0:00:12]} Rxg2 {[%emt 0:00:25]} 39. Rh4 {[%emt 0:01:59]} g5 {[%emt 0:00:48]} 40. Rh3 {[%emt 0:00:20]} Kg6 41. Ke3 {[%emt 0:00:47]} Ra2 {[%emt 0:01:33]} 42. Nd3 {[%emt 0:01:12]} h5 {[%emt 0:00:13]} 43. Ke4 {[%emt 0:00:56]} Ra4+ {[%emt 0:00:26]} 44. Ke3 {[%emt 0:00:15]} Ra2 {[%emt 0:00:31]} 45. Ke4 {[%emt 0:01:15]} Ra4+ {[%emt 0:01:24]} 46. Ke3 {[%emt 0:00:08]} Ra2 {[%emt 0:00:49]} 47. Nf2 {[%emt 0:00:00]} g4 {[%emt 0:00:42]} 48. Rg3 {[%emt 0:00:00]} Kf5 {[%emt 0:00:45]} 49. h3 {[%emt 0:00:00]} gxh3 {[%emt 0:00:32]} 50. Rxh3 Ra3+ 51. Nd3 Kg4 52. Rf3 h4 53. Rf1 h3 54. Rxf7 h2 55. Rh7 Kg3 56. Rg7+ Kh3 57. Ke4 1/2-1/2

[Event "Portuguese Associations Cup 2019"]
[Site "Almada"]
[Date "2019.09.28"]
[Round "1.4"]
[White "Goncalves, Samuel Jesus P"]
[Black "Gaboleiro, Guilherme"]
[Result "1-0"]
[ECO "B30"]
[WhiteElo "1679"]
[BlackElo "1850"]
[Annotator "NA"]
[PlyCount "69"]
[EventDate "2019.09.28"]
[EventType "swiss"]
[EventCountry "POR"]
[SourceTitle "playchess.com"]
[Source "ChessBase"]
[SourceQuality "1"]
[TimeControl "5400+30"]

1. e4 {[%emt 0:00:00]} c5 {[%emt 0:00:00]} 2. Nf3 {[%emt 0:00:00]} Nc6 {[%emt 0:26:28]} 3. Bb5 {[%emt 0:00:08]} Qc7 {[%emt 0:00:27]} 4. O-O {[%emt 0:00:22]} d6 {[%emt 0:00:21]} 5. Qe2 {[%emt 0:01:07]} a6 {[%emt 0:00:31]} 6. Bxc6+ {[%emt 0:00:08]} Qxc6 {[%emt 0:00:12]} 7. h3 {[%emt 0:00:51]} e6 {[%emt 0:00:12]} 8. Rd1 Be7 {[%emt 0:02:44]} 9. c3 {[%emt 0:03:32]} Nf6 {[%emt 0:00:08]} 10. d3 {[%emt 0:00:59]} O-O {[%emt 0:00:18]} 11. Nbd2 {[%emt 0:00:40]} b5 {[%emt 0:00:21]} 12. Nf1 {[%emt 0:01:04]} Bb7 {[%emt 0:00:14]} 13. Bg5 {[%emt 0:03:11]} Rfe8 {[%emt 0:01:17]} 14. Ng3 {[%emt 0:01:30]} Rad8 {[%emt 0:02:27]} 15. Rac1 {[%emt 0:02:29]} h6 {[%emt 0:00:37]} 16. Bxf6 {[%emt 0:01:53]} Bxf6 {[%emt 0:00:11]} 17. d4 {[%emt 0:00:16]} g6 {[%emt 0:00:49]} 18. Nh2 {[%emt 0:26:08]} Bg5 {[%emt 0:05:54]} 19. Rc2 {[%emt 0:01:02]} h5 20. f3 {[%emt 0:11:18]} Rc8 {[%emt 0:05:08]} 21. Qf2 {[%emt 0:05:31]} Bh4 {[%emt 0:06:19]} 22. Nhf1 {[%emt 0:00:20]} f5 {[%emt 0:01:08]} 23. Qd2 {[%emt 0:00:51]} Kh7 {[%emt 0:04:13]} 24. d5 {[%emt 0:04:02]} exd5 {[%emt 0:00:31]} 25. exf5 {[%emt 0:00:02]} c4 {[%emt 0:03:48]} 26. fxg6+ {[%emt 0:00:58]} Kxg6 {[%emt 0:00:29]} 27. Qf4 {[%emt 0:00:53]} Bxg3 {[%emt 0:03:50]} 28. Qxg3+ {[%emt 0:00:29]} Kh6 {[%emt 0:01:11]} 29. Rd4 {[%emt 0:00:28]} Qd7 {[%emt 0:03:37]} 30. Ne3 Rg8 {[%emt 0:03:09]} 31. Qf4+ {[%emt 0:02:23]} Kh7 {[%emt 0:00:32]} 32. Nxd5 {[%emt 0:03:06]} Bxd5 {[%emt 0:09:14]} 33. Rxd5 Rc5 {[%emt 0:00:28]} 34. Rcd2 {[%emt 0:01:50]} Qxh3 {[%emt 0:01:54]} 35. Qf7+ {[%emt 0:00:17]} 1-0

[Event "Portuguese Associations Cup 2019"]
[Site "Almada"]
[Date "2019.09.29"]
[Round "2.1"]
[White "Dias, Ivo Rodrigues"]
[Black "Pinto, Andre Filipe Silva"]
[Result "1-0"]
[ECO "B27"]
[WhiteElo "2115"]
[BlackElo "2007"]
[Annotator "ChessBase"]
[PlyCount "63"]
[EventDate "2019.09.28"]
[EventType "swiss"]
[EventCountry "POR"]
[SourceTitle "playchess.com"]
[Source "ChessBase"]
[SourceQuality "1"]
[TimeControl "5400+30"]

1. e4 {[%emt 0:04:13]} c5 {[%emt 0:00:00]} 2. Nf3 {[%emt 0:00:24]} g6 {[%emt 0:00:09]} 3. d4 {[%emt 0:00:07]} cxd4 {[%emt 0:00:08]} 4. Qxd4 {[%emt 0:00:06]} Nf6 {[%emt 0:00:11]} 5. Nc3 {[%emt 0:00:18]} Nc6 {[%emt 0:00:33]} 6. Qa4 {[%emt 0:00:07]} Bg7 {[%emt 0:02:53]} 7. e5 {[%emt 0:00:14]} Ng8 {[%emt 0:00:15]} 8. Bf4 {[%emt 0:00:09]} f6 {[%emt 0:02:00]} 9. exf6 {[%emt 0:00:22]} Nxf6 {[%emt 0:00:07]} 10. O-O-O {[%emt 0:01:23]} O-O {[%emt 0:01:08]} 11. Bb5 {[%emt 0:01:00]} Nh5 {[%emt 0:04:41]} 12. Be3 {[%emt 0:00:23]} e6 {[%emt 0:03:01]} 13. Ne4 {[%emt 0:04:36]} Nf4 {[%emt 0:03:20]} 14. Bc5 {[%emt 0:18:31]} Rf5 15. g4 Rd5 {[%emt 0:03:40]} 16. Bd6 {[%emt 0:14:17]} Rxd1+ {[%emt 0:02:10]} 17. Rxd1 {[%emt 0:01:07]} Nd5 18. g5 {[%emt 0:09:06]} a6 {[%emt 0:03:48]} 19. Bxc6 bxc6 {[%emt 0:02:46]} 20. Qa3 {[%emt 0:06:13]} Qe8 21. c4 {[%emt 0:05:01]} Nb6 {[%emt 0:03:14]} 22. Qb4 {[%emt 0:00:08]} Qd8 23. Ne5 {[%emt 0:06:22]} a5 {[%emt 0:02:17]} 24. Qc5 Na4 {[%emt 0:04:20]} 25. Qa3 {[%emt 0:00:50]} Nb6 26. Qf3 Bxe5 {[%emt 0:06:05]} 27. Bxe5 {[%emt 0:03:23]} Nxc4 {[%emt 0:00:07]} 28. Nf6+ {[%emt 0:00:12]} Kh8 29. Qf4 {[%emt 0:04:31]} Nxe5 {[%emt 0:02:25]} 30. Qxe5 {[%emt 0:00:07]} Qe7 {[%emt 0:00:06]} 31. Nxd7+ Kg8 {[%emt 0:00:39]} 32. Nb6 {[%emt 0:02:10]} 1-0

[Event "Portuguese Associations Cup 2019"]
[Site "Almada"]
[Date "2019.09.29"]
[Round "2.2"]
[White "Batalha, Rui Gomes"]
[Black "Novais, Carlos Joao Fernande"]
[Result "1-0"]
[ECO "C01"]
[WhiteElo "1733"]
[BlackElo "2051"]
[Annotator "NA"]
[PlyCount "83"]
[EventDate "2019.09.28"]
[EventType "swiss"]
[EventCountry "POR"]
[SourceTitle "playchess.com"]
[Source "ChessBase"]
[SourceQuality "1"]
[TimeControl "5400+30"]

1. e4 e6 {[%emt 0:04:05]} 2. d4 {[%emt 0:00:00]} d5 {[%emt 0:00:05]} 3. exd5 {[%emt 0:00:19]} exd5 {[%emt 0:00:07]} 4. Nf3 Bd6 {[%emt 0:02:10]} 5. Bd3 {[%emt 0:01:35]} Nc6 {[%emt 0:00:19]} 6. Bg5 {[%emt 0:02:17]} Nge7 {[%emt 0:01:59]} 7. O-O {[%emt 0:00:16]} Bg4 {[%emt 0:00:11]} 8. c3 {[%emt 0:01:07]} Qd7 {[%emt 0:01:06]} 9. Nbd2 Bf5 {[%emt 0:10:15]} 10. Bxf5 {[%emt 0:15:15]} Qxf5 {[%emt 0:00:57]} 11. Re1 {[%emt 0:01:02]} f6 12. Bh4 {[%emt 0:01:29]} O-O-O {[%emt 0:01:40]} 13. Bg3 {[%emt 0:01:39]} g5 {[%emt 0:01:28]} 14. Bxd6 {[%emt 0:00:21]} Rxd6 {[%emt 0:07:12]} 15. Qb1 Qf4 16. Nf1 {[%emt 0:10:39]} g4 {[%emt 0:03:04]} 17. Nh4 Qg5 {[%emt 0:04:10]} 18. g3 {[%emt 0:01:16]} f5 {[%emt 0:11:52]} 19. Qc1 f4 20. b4 {[%emt 0:05:38]} Rf8 {[%emt 0:03:17]} 21. b5 {[%emt 0:00:55]} Na5 22. Re5 {[%emt 0:02:49]} Qg7 {[%emt 0:04:10]} 23. Qe1 {[%emt 0:01:59]} Kd7 {[%emt 0:05:26]} 24. Nd2 {[%emt 0:02:23]} b6 {[%emt 0:07:14]} 25. Rc1 {[%emt 0:25:55]} c6 {[%emt 0:01:22]} 26. c4 Nxc4 {[%emt 0:00:07]} 27. Nxc4 {[%emt 0:01:28]} dxc4 {[%emt 0:02:09]} 28. Rxc4 {[%emt 0:02:26]} cxb5 {[%emt 0:02:24]} 29. Rc7+ Kd8 30. Rcxe7 {[%emt 0:02:13]} Qf6 {[%emt 0:00:47]} 31. Qe4 {[%emt 0:02:12]} Rc6 32. Qd5+ {[%emt 0:07:30]} Qd6 {[%emt 0:01:34]} 33. Qxd6+ {[%emt 0:00:17]} Rxd6 {[%emt 0:00:24]} 34. gxf4 {[%emt 0:03:25]} Rxd4 {[%emt 0:02:33]} 35. Rxa7 {[%emt 0:01:08]} Rfxf4 {[%emt 0:00:47]} 36. Rg5 {[%emt 0:00:22]} Rf8 {[%emt 0:01:00]} 37. Nf5 Rc4 {[%emt 0:00:06]} 38. Ra8+ {[%emt 0:01:38]} Rc8 {[%emt 0:00:06]} 39. Rxc8+ {[%emt 0:00:43]} Kxc8 40. Nd6+ {[%emt 0:00:54]} Kd7 {[%emt 0:01:04]} 41. Nxb5 {[%emt 0:00:14]} Ra8 42. a3 {[%emt 0:00:34]} 1-0

[Event "Portuguese Associations Cup 2019"]
[Site "Almada"]
[Date "2019.09.29"]
[Round "2.3"]
[White "Silva, Mariana Sofia T."]
[Black "Marques, Jose Carlos Capela"]
[Result "1-0"]
[ECO "A04"]
[WhiteElo "1882"]
[BlackElo "2014"]
[Annotator "NA"]
[PlyCount "103"]
[EventDate "2019.09.28"]
[EventType "swiss"]
[EventCountry "POR"]
[SourceTitle "playchess.com"]
[Source "ChessBase"]
[SourceQuality "1"]
[TimeControl "5400+30"]

1. Nf3 {[%emt 0:05:30]} Nc6 {[%emt 0:00:08]} 2. d4 {[%emt 0:01:13]} e6 {[%emt 0:01:57]} 3. g3 {[%emt 0:02:54]} h6 {[%emt 0:01:23]} 4. Bg2 {[%emt 0:02:11]} Nf6 {[%emt 0:02:50]} 5. O-O {[%emt 0:01:47]} Be7 {[%emt 0:01:31]} 6. c4 {[%emt 0:04:25]} d5 {[%emt 0:02:14]} 7. b3 {[%emt 0:02:49]} O-O {[%emt 0:01:22]} 8. Bb2 {[%emt 0:00:45]} Bd7 {[%emt 0:02:57]} 9. Nc3 {[%emt 0:05:37]} Bb4 {[%emt 0:08:38]} 10. Rc1 {[%emt 0:04:01]} Rb8 {[%emt 0:07:51]} 11. a3 {[%emt 0:03:20]} Bxc3 {[%emt 0:00:24]} 12. Bxc3 a6 {[%emt 0:03:05]} 13. Nd2 {[%emt 0:05:33]} Qe7 {[%emt 0:00:53]} 14. Bb2 {[%emt 0:00:47]} Rfd8 {[%emt 0:05:05]} 15. Qc2 {[%emt 0:05:39]} Be8 {[%emt 0:03:00]} 16. Rfd1 {[%emt 0:02:21]} Rbc8 {[%emt 0:10:18]} 17. e4 {[%emt 0:02:39]} dxe4 {[%emt 0:09:51]} 18. Nxe4 {[%emt 0:00:11]} Nxe4 {[%emt 0:00:36]} 19. Bxe4 {[%emt 0:01:23]} Rb8 {[%emt 0:04:11]} 20. Qc3 {[%emt 0:06:43]} f6 {[%emt 0:02:21]} 21. Qe3 Kh8 {[%emt 0:07:28]} 22. Re1 {[%emt 0:10:47]} Qf7 {[%emt 0:01:09]} 23. Bb1 {[%emt 0:06:07]} Bd7 {[%emt 0:01:35]} 24. Qd3 {[%emt 0:02:49]} f5 {[%emt 0:01:01]} 25. Qc3 {[%emt 0:01:49]} Ne7 {[%emt 0:01:13]} 26. Rcd1 {[%emt 0:01:43]} Bc6 {[%emt 0:03:16]} 27. Qe3 {[%emt 0:00:55]} Qh5 28. d5 {[%emt 0:07:09]} f4 {[%emt 0:06:04]} 29. Qxe6 {[%emt 0:02:59]} fxg3 {[%emt 0:01:57]} 30. fxg3 Nxd5 31. cxd5 {[%emt 0:02:28]} Bxd5 {[%emt 0:00:46]} 32. Qg6 {[%emt 0:02:37]} Qxg6 {[%emt 0:00:12]} 33. Bxg6 {[%emt 0:00:01]} Bxb3 {[%emt 0:01:45]} 34. Rxd8+ {[%emt 0:00:36]} Rxd8 {[%emt 0:00:07]} 35. Re8+ {[%emt 0:01:06]} Rxe8 {[%emt 0:00:02]} 36. Bxe8 {[%emt 0:00:08]} a5 {[%emt 0:02:47]} 37. Bc3 {[%emt 0:01:38]} a4 {[%emt 0:00:12]} 38. Kf2 {[%emt 0:00:27]} Kg8 39. Bg6 c5 {[%emt 0:01:45]} 40. Be5 {[%emt 0:02:11]} b5 {[%emt 0:00:29]} 41. Bd6 {[%emt 0:00:20]} b4 {[%emt 0:01:13]} 42. Bxc5 {[%emt 0:00:24]} bxa3 {[%emt 0:00:01]} 43. Bxa3 {[%emt 0:00:14]} Bf7 {[%emt 0:02:23]} 44. Be4 {[%emt 0:01:28]} Bb3 {[%emt 0:00:49]} 45. h4 {[%emt 0:01:18]} Kf7 {[%emt 0:00:27]} 46. h5 {[%emt 0:00:19]} Kf6 {[%emt 0:00:36]} 47. Bb2+ {[%emt 0:00:37]} Kg5 {[%emt 0:00:14]} 48. Bg6 {[%emt 0:00:24]} Bd1 {[%emt 0:01:19]} 49. Bc1+ {[%emt 0:00:24]} Kf6 {[%emt 0:00:19]} 50. Ke3 {[%emt 0:00:35]} Bg4 {[%emt 0:02:24]} 51. Kf4 {[%emt 0:00:14]} Bd1 {[%emt 0:00:41]} 52. Bb2+ {[%emt 0:00:03]} 1-0

[Event "Portuguese Associations Cup 2019"]
[Site "Almada"]
[Date "2019.09.29"]
[Round "2.4"]
[White "Pais, Ricardo Emanuel Pere"]
[Black "Silva, Ana Ines Teixeira Da"]
[Result "1/2-1/2"]
[ECO "C44"]
[WhiteElo "1825"]
[BlackElo "1738"]
[Annotator "NA"]
[PlyCount "67"]
[EventDate "2019.09.28"]
[EventType "swiss"]
[EventCountry "POR"]
[SourceTitle "playchess.com"]
[Source "ChessBase"]
[SourceQuality "1"]
[TimeControl "5400+30"]

1. e4 {[%emt 0:00:00]} e5 2. Nf3 Nc6 {[%emt 0:04:50]} 3. d4 {[%emt 0:00:13]} exd4 {[%emt 0:00:21]} 4. Nxd4 {[%emt 0:00:04]} Bb4+ {[%emt 0:00:35]} 5. c3 {[%emt 0:00:26]} Bc5 {[%emt 0:00:14]} 6. Be3 {[%emt 0:00:54]} Bb6 {[%emt 0:00:47]} 7. g3 {[%emt 0:01:18]} Nf6 {[%emt 0:02:48]} 8. f4 {[%emt 0:06:27]} Nxe4 {[%emt 0:19:01]} 9. Bg2 {[%emt 0:00:42]} Nf6 {[%emt 0:01:00]} 10. O-O O-O {[%emt 0:01:24]} 11. Nd2 {[%emt 0:00:56]} Nxd4 12. Bxd4 {[%emt 0:00:30]} Bxd4+ {[%emt 0:07:10]} 13. cxd4 {[%emt 0:00:02]} d5 {[%emt 0:02:05]} 14. Rc1 {[%emt 0:00:50]} c6 {[%emt 0:00:33]} 15. Qb3 {[%emt 0:02:10]} Qb6 {[%emt 0:08:50]} 16. Qxb6 {[%emt 0:00:11]} axb6 {[%emt 0:00:06]} 17. a3 {[%emt 0:00:17]} Bf5 {[%emt 0:04:54]} 18. Rfe1 {[%emt 0:03:52]} Rfe8 {[%emt 0:07:37]} 19. Re5 Rxe5 {[%emt 0:02:48]} 20. dxe5 {[%emt 0:14:21]} Ne8 {[%emt 0:10:55]} 21. Kf2 {[%emt 0:04:05]} Nc7 {[%emt 0:02:34]} 22. Bf1 {[%emt 0:17:54]} c5 {[%emt 0:06:53]} 23. h3 {[%emt 0:03:08]} Rd8 {[%emt 0:02:21]} 24. g4 {[%emt 0:00:55]} Bd7 {[%emt 0:01:28]} 25. Nf3 {[%emt 0:04:23]} Bc6 {[%emt 0:03:08]} 26. Bd3 {[%emt 0:03:49]} d4 27. Ng5 h6 {[%emt 0:05:22]} 28. Ne4 {[%emt 0:01:34]} Nd5 29. Kg3 {[%emt 0:01:47]} Ne3 {[%emt 0:03:44]} 30. Nd6 {[%emt 0:02:00]} Nd5 {[%emt 0:01:42]} 31. Bc4 {[%emt 0:05:13]} Rd7 {[%emt 0:00:31]} 32. h4 {[%emt 0:03:39]} Nc7 {[%emt 0:01:03]} 33. b4 {[%emt 0:05:55]} cxb4 {[%emt 0:00:52]} 34. axb4 {[%emt 0:02:22]} 1/2-1/2

[Event "Portuguese Associations Cup 2019"]
[Site "Almada"]
[Date "2019.09.29"]
[Round "3.1"]
[White "Rocha, Sergio"]
[Black "Dias, Ivo Rodrigues"]
[Result "1-0"]
[ECO "A13"]
[WhiteElo "2356"]
[BlackElo "2115"]
[Annotator "NA"]
[PlyCount "71"]
[EventDate "2019.09.28"]
[EventType "swiss"]
[EventCountry "POR"]
[SourceTitle "playchess.com"]
[Source "ChessBase"]
[SourceQuality "1"]
[TimeControl "5400+30"]

1. c4 e6 {[%emt 0:13:55]} 2. Nc3 {[%emt 0:00:46]} d5 {[%emt 0:00:08]} 3. d4 {[%emt 0:00:15]} Bb4 4. e3 Nf6 {[%emt 0:02:35]} 5. Bd3 {[%emt 0:01:03]} e5 {[%emt 0:00:50]} 6. dxe5 {[%emt 0:01:10]} dxc4 7. Qa4+ {[%emt 0:04:43]} Nc6 {[%emt 0:01:07]} 8. Bxc4 Ng4 {[%emt 0:07:51]} 9. Nf3 {[%emt 0:00:43]} O-O {[%emt 0:03:49]} 10. O-O Bxc3 {[%emt 0:09:35]} 11. bxc3 {[%emt 0:01:00]} Ncxe5 {[%emt 0:00:49]} 12. Nxe5 {[%emt 0:00:15]} Nxe5 {[%emt 0:00:39]} 13. Be2 Qe7 14. Bb2 {[%emt 0:04:16]} Re8 {[%emt 0:03:09]} 15. Rad1 {[%emt 0:00:58]} Be6 {[%emt 0:01:10]} 16. c4 {[%emt 0:01:05]} Nd7 {[%emt 0:00:29]} 17. Ba3 {[%emt 0:02:38]} c5 {[%emt 0:05:22]} 18. Bb2 {[%emt 0:03:54]} a6 {[%emt 0:21:36]} 19. Qa5 f6 {[%emt 0:00:52]} 20. Qc3 {[%emt 0:01:44]} Ne5 {[%emt 0:02:57]} 21. a4 {[%emt 0:05:40]} b6 22. Qb3 {[%emt 0:13:26]} Nf7 {[%emt 0:04:34]} 23. Bf3 {[%emt 0:00:40]} Rab8 {[%emt 0:00:13]} 24. Bd5 {[%emt 0:01:43]} Bd7 {[%emt 0:01:34]} 25. Qc2 {[%emt 0:00:29]} Kh8 {[%emt 0:03:10]} 26. Rd2 {[%emt 0:03:23]} Nd6 {[%emt 0:10:32]} 27. e4 Nf7 {[%emt 0:01:55]} 28. Re1 {[%emt 0:05:47]} Nd8 29. e5 {[%emt 0:01:42]} fxe5 {[%emt 0:01:33]} 30. Rxe5 {[%emt 0:00:24]} Qh4 31. g3 Qh6 {[%emt 0:04:21]} 32. Qf5 {[%emt 0:07:02]} Nc6 {[%emt 0:00:44]} 33. Rxe8+ {[%emt 0:00:47]} Rxe8 {[%emt 0:00:09]} 34. Qxd7 {[%emt 0:00:16]} Rd8 35. Bxg7+ {[%emt 0:01:48]} Qxg7 {[%emt 0:00:50]} 36. Qxc6 {[%emt 0:00:05]} 1-0